bitfinex/quotes_SOLUSD_20220113
["timestamp","ask_amount","ask_price","bid_price","bid_amount"]
[1642111621896,62.0,149.25,149.2,6.26]
[1642111622195,62.0,149.25,149.2,0.26]
[1642111622400,62.0,149.25,149.2,6.26]
[1642111622597,62.0,149.25,149.2,6.0]
[1642111622997,62.0,149.25,149.18,15.63]
[1642111623197,62.0,149.25,149.21,10.0513]
[1642111623621,62.0,149.25,149.21,10.3013]
[1642111623823,62.0,149.25,149.21,16.3013]
[1642111624028,62.0,149.25,149.21,16.5613]
[1642111627926,68.0,149.25,149.21,16.5613]
[1642111628328,62.0,149.25,149.21,16.5613]
[1642111628527,68.0,149.25,149.21,16.5613]
[1642111631033,68.0,149.25,149.21,16.3013]
[1642111631232,62.0,149.25,149.21,10.3013]
[1642111631432,68.0,149.25,149.21,0.25]
[1642111631730,2.68,149.24,149.21,0.25]
[1642111631933,3.53219997,149.23,149.2,16.3022]
[1642111632133,6.51942214,149.24,149.21,2.53219997]
[1642111632331,3.83942214,149.24,149.21,2.53219997]
[1642111632530,3.83942214,149.24,149.21,2.78219997]
[1642111632732,62.26,149.25,149.21,2.78219997]
[1642111633130,62.26,149.25,149.21,12.83369997]
[1642111633331,62.0,149.25,149.21,12.83369997]
[1642111633932,62.0,149.25,149.21,18.83369997]
[1642111634534,62.0,149.25,149.21,19.09369997]
[1642111634740,62.0,149.25,149.21,18.83369997]
[1642111635438,62.0,149.25,149.21,13.09369997]
[1642111635635,62.0,149.25,149.21,19.09369997]
[1642111635835,2.68,149.27,149.21,19.09369997]
[1642111636235,8.68,149.27,149.21,19.09369997]
[1642111636437,2.68,149.27,149.21,19.09369997]
[1642111636638,8.68,149.27,149.21,19.09369997]
[1642111636837,2.68,149.27,149.21,19.09369997]
[1642111637038,3.83921357,149.26,149.21,19.09369997]
[1642111638237,3.83921357,149.26,149.21,20.74369518]
[1642111638839,3.83921357,149.26,149.22,67.19]
[1642111639037,3.83921357,149.26,149.24,10.0488]
[1642111639237,3.83921357,149.26,149.25,2.53219997]
[1642111639438,32.65434516,149.3,149.25,2.53219997]
[1642111639640,32.65434516,149.3,149.25,3.04219997]
[1642111639841,38.65434516,149.3,149.25,3.04219997]
[1642111640244,3.83869921,149.29,149.25,3.04219997]
[1642111640643,3.33869921,149.29,149.25,9.04219997]
[1642111641043,3.8386722,149.28,149.25,9.04219997]
[1642111641242,3.8386722,149.28,149.25,19.09109997]
[1642111642382,3.8386722,149.28,149.25,18.83109997]
[1642111642585,3.8386722,149.28,149.25,12.83109997]
[1642111642982,3.53219997,149.27,149.25,12.83109997]
[1642111643181,3.8386722,149.28,149.25,12.83109997]
[1642111643980,3.8386722,149.28,149.25,19.09109997]
[1642111644781,24.3485,149.3,149.25,19.09109997]
[1642111649484,28.1871722,149.3,149.25,19.09109997]
[1642111653889,24.3485,149.3,149.25,19.09109997]
[1642111654592,24.3485,149.3,149.25,18.84109997]
[1642111655888,24.3485,149.3,149.25,19.09109997]
[1642111656191,28.1871722,149.3,149.25,19.09109997]
[1642111657088,24.3485,149.3,149.25,19.09109997]
[1642111661622,28.1871722,149.3,149.25,19.09109997]
[1642111662323,24.3485,149.3,149.25,19.09109997]
[1642111664623,24.3485,149.3,149.25,18.09109997]
[1642111669129,3.8386722,149.31,149.25,31.52565423]
[1642111669328,3.8386722,149.31,149.26,1.64999521]
[1642111669527,3.8386722,149.31,149.28,10.044]
[1642111669728,3.8386722,149.31,149.29,1.53219997]
[1642111670128,3.8386722,149.31,149.29,8.04219997]
[1642111670329,3.8386722,149.37,149.29,8.04219997]
[1642111670528,3.8386722,149.37,149.31,1.67436876]
[1642111670928,3.8386722,149.37,149.31,7.92436876]
[1642111671929,4.0986722,149.37,149.31,7.92436876]
[1642111672130,4.0986722,149.37,149.33,10.0436]
[1642111672529,4.0986722,149.37,149.33,10.2936]
[1642111672728,4.0986722,149.37,149.33,16.2936]
[1642111674530,4.0986722,149.37,149.33,10.2936]
[1642111674730,4.0986722,149.37,149.33,0.25]
[1642111675130,6.7766722,149.37,149.32,10.294]
[1642111675931,3.8386722,149.37,149.32,17.94399521]
[1642111676133,3.8386722,149.37,149.33,12.308]
[1642111676330,3.8386722,149.37,149.35,10.0379]
[1642111676331,7.22e-05,149.37,149.35,10.0379]
[1642111676539,7.22e-05,149.4,149.36,4.21019997]
[1642111676937,7.22e-05,149.4,149.37,9.63]
[1642111677139,7.22e-05,149.4,149.38,2.677]
[1642111677336,7.22e-05,149.4,149.38,12.7142]
[1642111677537,5.62584516,149.43,149.39,51.0]
[1642111677740,5.62584516,149.43,149.4,2.677]
[1642111678138,4.53219997,149.42,149.4,10.83699521]
[1642111678337,8.30284516,149.48,149.4,8.927]
[1642111678338,5.62584516,149.48,149.4,8.927]
[1642111678538,2.676,149.47,149.41,10.0364]
[1642111678941,2.676,149.47,149.41,16.2864]
[1642111679539,2.936,149.47,149.41,16.2864]
[1642111679739,0.26,149.47,149.41,16.2864]
[1642111679939,2.676,149.49,149.41,16.2864]
[1642111681443,2.676,149.49,149.42,1.64999521]
[1642111681645,2.676,149.49,149.42,10.0369]
[1642111681840,2.676,149.49,149.42,16.2869]
[1642111683546,2.676,149.49,149.42,16.5469]
[1642111684447,2.936,149.49,149.42,16.5469]
[1642111684647,2.936,149.49,149.42,16.2869]
[1642111685455,2.676,149.49,149.42,16.5469]
[1642111685654,2.676,149.49,149.42,16.2869]
[1642111685855,1.91663974,149.45,149.41,10.0379]
[1642111686055,8.35663974,149.45,149.4,3.391785]
[1642111686256,2.676,149.44,149.4,3.391785]
[1642111686459,2.926,149.44,149.4,3.391785]
[1642111686655,2.426,149.44,149.4,3.391785]
[1642111687057,1.91663974,149.43,149.4,3.391785]
[1642111687274,7.20919997,149.42,149.4,3.391785]
[1642111689074,10.55779997,149.42,149.4,3.391785]
[1642111690178,47.91726682,149.41,149.4,3.391785]
[1642111690376,50.59426682,149.41,149.4,3.391785]
[1642111690580,50.85426682,149.41,149.4,3.391785]
[1642111690877,56.88026682,149.41,149.4,3.391785]
[1642111691080,54.963,149.41,149.4,3.391785]
[1642111692877,55.213,149.41,149.4,3.391785]
[1642111693076,61.213,149.41,149.4,3.391785]
[1642111693277,55.213,149.41,149.4,3.391785]
[1642111695690,54.963,149.41,149.4,3.391785]
[1642111695888,48.937,149.41,149.4,3.391785]
[1642111696094,46.26,149.41,149.4,3.391785]
[1642111698393,77.26,149.41,149.4,3.391785]
[1642111698793,77.0,149.41,149.4,3.391785]
[1642111700198,82.0218,149.41,149.4,3.391785]
[1642111700396,84.6988,149.41,149.4,3.391785]
[1642111701698,53.6988,149.41,149.4,3.391785]
[1642111701999,48.677,149.41,149.4,3.391785]
[1642111702198,46.0,149.41,149.4,3.391785]
[1642111702401,46.51,149.41,149.4,3.391785]
[1642111702600,49.187,149.41,149.4,3.391785]
[1642111704105,54.2088,149.41,149.4,3.391785]
[1642111704305,85.2088,149.41,149.4,3.391785]
[1642111704506,84.9588,149.41,149.4,3.391785]
[1642111704705,53.9588,149.41,149.4,3.391785]
[1642111704904,54.2088,149.41,149.4,3.391785]
[1642111705307,53.9588,149.41,149.4,3.391785]
[1642111705504,54.2088,149.41,149.4,3.391785]
[1642111706328,53.9588,149.41,149.4,3.391785]
[1642111706527,53.6988,149.41,149.4,3.391785]
[1642111706729,48.677,149.41,149.4,3.391785]
[1642111707028,46.25,149.41,149.4,3.391785]
[1642111707628,46.0,149.41,149.4,3.391785]
[1642111707932,51.0218,149.41,149.4,3.391785]
[1642111708830,46.0,149.41,149.4,3.391785]
[1642111710332,46.26,149.41,149.4,3.391785]
[1642111710733,46.51,149.41,149.4,3.391785]
[1642111710934,46.26,149.41,149.4,3.391785]
[1642111711434,46.0,149.41,149.4,3.391785]
[1642111712939,46.26,149.41,149.4,3.391785]
[1642111717947,46.51,149.41,149.4,3.391785]
[1642111718143,49.187,149.41,149.4,8.5e-05]
[1642111718546,80.099,149.41,149.4,8.5e-05]
[1642111718945,152.3108,149.41,149.4,8.5e-05]
[1642111719144,85.1208,149.41,149.4,8.5e-05]
[1642111719347,152.3108,149.41,149.4,8.5e-05]
[1642111719548,85.1208,149.41,149.4,8.5e-05]
[1642111720145,78.8708,149.41,149.4,8.5e-05]
[1642111720446,78.6108,149.41,149.4,8.5e-05]
[1642111721850,78.8608,149.41,149.4,8.5e-05]
[1642111722050,78.6108,149.41,149.4,8.5e-05]
[1642111722250,7.6988,149.41,149.4,8.5e-05]
[1642111722449,2.677,149.41,149.4,8.5e-05]
[1642111724051,8.2088,149.41,149.4,8.5e-05]
[1642111724252,7.9588,149.41,149.4,8.5e-05]
[1642111724450,8.2088,149.41,149.4,8.5e-05]
[1642111728256,3.187,149.41,149.4,8.5e-05]
[1642111730660,2.937,149.41,149.4,8.5e-05]
[1642111732065,0.26,149.41,149.4,8.5e-05]
[1642111732287,5.2818,149.41,149.4,8.5e-05]
[1642111732489,5.5318,149.41,149.4,8.5e-05]
[1642111732687,8.2088,149.41,149.4,8.5e-05]
[1642111733893,14.2088,149.41,149.4,8.5e-05]
[1642111734490,8.2088,149.41,149.4,8.5e-05]
[1642111737095,7.9588,149.41,149.4,8.5e-05]
[1642111737297,8.2088,149.41,149.4,8.5e-05]
[1642111737794,7.9588,149.41,149.4,8.5e-05]
[1642111738395,8.2088,149.41,149.4,8.5e-05]
[1642111739297,7.9588,149.41,149.4,8.5e-05]
[1642111740497,8.2088,149.41,149.4,8.5e-05]
[1642111743400,5.5318,149.41,149.4,8.5e-05]
[1642111745502,14.2088,149.41,149.4,8.5e-05]
[1642111748906,11.0218,149.41,149.4,8.5e-05]
[1642111749106,21.27409997,149.42,149.4,8.5e-05]
[1642111749107,4.53219997,149.42,149.4,8.5e-05]
[1642111749807,5.62584516,149.46,149.41,1.53219997]
[1642111750006,30.22434516,149.46,149.41,1.53219997]
[1642111750208,97.66434516,149.46,149.41,1.53219997]
[1642111750408,1.9159915,149.43,149.41,1.53219997]
[1642111751038,50.9159915,149.42,149.41,1.53219997]
[1642111751408,50.9159915,149.42,149.4,8.5e-05]
[1642111753910,35.5,149.41,149.4,8.5e-05]
[1642111754110,38.53219997,149.41,149.4,8.5e-05]
[1642111754712,38.79219997,149.41,149.4,8.5e-05]
[1642111760313,34.26,149.41,149.4,1.53228497]
[1642111761814,34.26,149.41,149.4,8.5e-05]
[1642111762617,67.26,149.41,149.4,8.5e-05]
[1642111762914,70.29219997,149.41,149.4,8.5e-05]
[1642111763116,76.29219997,149.41,149.4,8.5e-05]
[1642111764216,77.79219997,149.41,149.4,8.5e-05]
[1642111764419,71.79219997,149.41,149.4,8.5e-05]
[1642111767421,76.81399997,149.41,149.4,8.5e-05]
[1642111767824,144.00399997,149.41,149.4,8.5e-05]
[1642111768021,146.68099997,149.41,149.4,8.5e-05]
[1642111770724,148.59699147,149.41,149.4,8.5e-05]
[1642111774348,154.59699147,149.41,149.4,8.5e-05]
[1642111774549,148.59699147,149.41,149.4,8.5e-05]
[1642111775651,145.91999147,149.41,149.4,8.5e-05]
[1642111776050,78.46999147,149.41,149.4,8.5e-05]
[1642111776250,40.44819147,149.41,149.4,8.5e-05]
[1642111777154,38.53219997,149.41,149.4,8.5e-05]
[1642111777450,68.53219997,149.41,149.4,8.5e-05]
[1642111779852,68.79219997,149.41,149.4,8.5e-05]
[1642111780451,73.81389997,149.41,149.4,8.5e-05]
[1642111780854,76.49089997,149.41,149.4,8.5e-05]
[1642111782057,71.20919997,149.41,149.4,8.5e-05]
[1642111782260,41.20919997,149.41,149.4,8.5e-05]
[1642111782457,38.53219997,149.41,149.4,8.5e-05]
[1642111783460,38.79219997,149.41,149.4,8.5e-05]
[1642111785461,70.79219997,149.41,149.4,8.5e-05]
[1642111786062,38.79219997,149.41,149.4,8.5e-05]
[1642111786463,4.53219997,149.41,149.4,8.5e-05]
[1642111787364,45.53219997,149.41,149.4,8.5e-05]
[1642111787764,45.79219997,149.41,149.4,8.5e-05]
[1642111790870,41.26,149.41,149.4,1.53228497]
[1642111791268,41.26,149.41,149.4,8.5e-05]
[1642111794772,44.11895187,149.41,149.4,8.5e-05]
[1642111794971,50.11895187,149.41,149.4,8.5e-05]
[1642111798178,52.79595187,149.41,149.4,8.5e-05]
[1642111798377,44.11895187,149.41,149.4,8.5e-05]
[1642111801207,85.0,149.4,149.35,2.677]
[1642111801406,85.0,149.38,149.32,1.72906711]
[1642111801605,93.051,149.38,149.32,1.72906711]
[1642111801806,160.241,149.38,149.29,1.72906711]
[1642111802006,2.678,149.37,149.29,1.72906711]
[1642111802407,5.0236,149.36,149.29,1.72906711]
[1642111802605,2.678,149.35,149.29,1.72906711]
[1642111802805,4.5939915,149.39,149.27,2.678]
[1642111803006,4.5939915,149.39,149.31,1.92436876]
[1642111803205,4.5939915,149.39,149.31,7.92436876]
[1642111803810,4.8439915,149.39,149.31,7.92436876]
[1642111804307,9.6159915,149.39,149.31,17.96906876]
[1642111805107,7.96,149.39,149.31,17.96906876]
[1642111805809,7.96,149.39,149.32,2.678]
[1642111806009,7.96,149.39,149.32,18.9717]
[1642111806910,7.96,149.39,149.32,12.9717]
[1642111807109,7.96,149.39,149.32,16.2937]
[1642111807909,13.96,149.39,149.32,16.2937]
[1642111808919,15.8759915,149.39,149.32,16.2937]
[1642111809918,10.8539915,149.39,149.32,16.2937]
[1642111810217,10.8539915,149.39,149.32,17.94369521]
[1642111810419,10.8539915,149.39,149.32,11.94369521]
[1642111810617,1.9159915,149.4,149.32,17.94369521]
[1642111810818,1.9159915,149.4,149.33,21.64750071]
[1642111811016,1.9159915,149.4,149.36,10.0388]
[1642111811218,1.9159915,149.4,149.36,23.05596476]
[1642111811419,1.9159915,149.4,149.36,29.56596476]
[1642111811819,1.9159915,149.43,149.36,29.56596476]
[1642111812016,1.9159915,149.43,149.37,2.677]
[1642111812416,1.9159915,149.43,149.39,10.039]
[1642111812817,1.9159915,149.44,149.39,10.289]
[1642111813017,1.9159915,149.44,149.39,16.289]
[1642111813819,47.6235,149.45,149.39,16.289]
[1642111813820,49.5394915,149.45,149.39,16.289]
[1642111814928,49.7994915,149.45,149.39,16.289]
[1642111816531,25.3386915,149.45,149.39,16.289]
[1642111816830,25.3386915,149.45,149.39,10.289]
[1642111817026,25.3386915,149.45,149.39,16.289]
[1642111817332,25.3386915,149.45,149.39,10.289]
[1642111817528,25.3386915,149.45,149.39,16.289]
[1642111819271,25.0786915,149.45,149.39,16.289]
[1642111819470,1.9159915,149.45,149.39,16.289]
[1642111820268,1.9159915,149.45,149.39,16.549]
[1642111820570,1.9159915,149.45,149.39,16.289]
[1642111820769,1.9159915,149.45,149.39,18.966]
[1642111820970,1.9159915,149.46,149.39,18.966]
[1642111822972,2.1759915,149.46,149.39,18.966]
[1642111825776,2.1759915,149.46,149.39,19.036]
[1642111828080,2.676,149.45,149.39,16.109]
[1642111828282,2.676,149.45,149.39,0.07]
[1642111828480,25.4498,149.45,149.39,0.07]
[1642111828680,27.3657915,149.45,149.39,0.07]
[1642111828881,94.5557915,149.45,149.39,0.07]
[1642111829081,6.0246,149.44,149.39,0.07]
[1642111829283,2.677,149.43,149.39,0.07]
[1642111829480,27.3615,149.43,149.39,0.07]
[1642111830182,33.3866,149.43,149.39,0.07]
[1642111830884,35.3025915,149.43,149.39,0.07]
[1642111831984,35.5625915,149.43,149.39,0.07]
[1642111832684,7.9413915,149.42,149.39,0.07]
[1642111832887,2.677,149.41,149.39,0.07]
[1642111833284,34.0,149.4,149.39,0.07]
[1642111834188,34.0,149.4,149.39,1.60219997]
[1642111834587,35.5,149.4,149.39,1.7432481]
[1642111834987,36.85895187,149.4,149.39,0.07]
[1642111836593,37.11895187,149.4,149.39,0.07]
[1642111836791,45.21395187,149.4,149.39,0.07]
[1642111842909,45.21395187,149.4,149.35,1.64999521]
[1642111843107,2.677,149.39,149.33,1.72906711]
[1642111843710,8.677,149.39,149.33,1.72906711]
[1642111843907,2.677,149.39,149.33,1.72906711]
[1642111844108,6.0271,149.38,149.31,3.40343587]
[1642111844307,23.021,149.39,149.31,3.40343587]
[1642111844308,2.678,149.37,149.31,3.40343587]
[1642111844512,5.527,149.37,149.31,3.65343587]
[1642111844713,2.678,149.36,149.31,3.40343587]
[1642111845128,12.308,149.36,149.31,3.40343587]
[1642111845328,6.0285,149.34,149.31,3.40343587]
[1642111845528,2.678,149.33,149.31,3.40343587]
[1642111845928,2.678,149.33,149.31,1.67436876]
[1642111846128,69.868,149.33,149.31,1.67436876]
[1642111846331,70.118,149.33,149.31,1.67436876]
[1642111846929,66.35895187,149.32,149.31,1.67436876]
[1642111847131,72.38875187,149.32,149.31,1.67436876]
[1642111847333,73.88875187,149.32,149.31,1.67436876]
[1642111847730,73.88875187,149.32,149.27,1.67436876]
[1642111847931,76.56675187,149.32,149.27,1.67436876]
[1642111848231,76.56675187,149.32,149.27,1.92436876]
[1642111848633,76.56675187,149.32,149.27,3.57436397]
[1642111849233,73.88875187,149.32,149.27,1.92436876]
[1642111849434,73.88875187,149.32,149.28,1.64999521]
[1642111849733,73.88875187,149.32,149.27,1.92436876]
[1642111850136,73.88875187,149.32,149.28,1.64999521]
[1642111850335,73.88875187,149.32,149.27,1.92436876]
[1642111850636,76.56675187,149.32,149.27,1.92436876]
[1642111850936,76.82675187,149.32,149.27,3.57436397]
[1642111851235,76.82675187,149.32,149.27,1.92436876]
[1642111853136,82.82675187,149.32,149.27,1.92436876]
[1642111853537,144.01675187,149.32,149.27,1.92436876]
[1642111853737,141.33875187,149.32,149.27,1.92436876]
[1642111853938,147.33875187,149.32,149.27,1.92436876]
[1642111855342,147.58875187,149.32,149.27,1.67436876]
[1642111855539,9.63,149.31,149.27,1.67436876]
[1642111855740,6.0322,149.29,149.27,1.67436876]
[1642111855941,68.678,149.28,149.27,1.67436876]
[1642111856341,53.0,149.27,149.24,2.678]
[1642111858042,67.19,149.26,149.24,2.678]
[1642111858246,73.2222,149.26,149.21,1.72906711]
[1642111858441,73.2222,149.26,149.21,1.97906711]
[1642111858643,73.2222,149.26,149.21,1.72906711]
[1642111859445,73.4822,149.26,149.21,1.72906711]
[1642111860046,73.4822,149.26,149.21,1.97906711]
[1642111860351,67.19,149.24,149.2,0.008788]
[1642111860548,12.31,149.23,149.16,5.30455247]
[1642111860746,6.0355,149.2,149.16,3.65455726]
[1642111860947,2.681,149.19,149.16,3.65455726]
[1642111861147,2.85895187,149.18,149.16,3.65455726]
[1642111861548,2.85895187,149.18,149.12,2.681]
[1642111861948,2.85895187,149.18,149.12,4.33099521]
[1642111862450,2.85895187,149.18,149.12,14.38849521]
[1642111862651,2.681,149.17,149.1,5.30455247]
[1642111863049,2.682,149.18,149.11,1.64999521]
[1642111863592,2.682,149.18,149.11,11.95819521]
[1642111863785,2.682,149.18,149.11,1.89999521]
[1642111863988,0.26,149.18,149.11,5.73916526]
[1642111864186,2.681,149.17,149.11,5.73916526]
[1642111864588,0.26,149.17,149.11,5.73916526]
[1642111864988,6.0353,149.18,149.11,5.73916526]
[1642111865189,6.0353,149.18,149.11,8.42016526]
[1642111865787,6.0353,149.18,149.11,4.58099521]
[1642111866188,2.681,149.17,149.11,4.58099521]
[1642111867588,2.681,149.17,149.11,1.89999521]
[1642111870500,2.941,149.17,149.11,1.89999521]
[1642111870697,0.26,149.17,149.12,4.33199521]
[1642111870895,2.682,149.2,149.12,4.33199521]
[1642111871097,8.682,149.2,149.12,10.58199521]
[1642111871295,9.63,149.21,149.12,10.84199521]
[1642111871495,15.63,149.21,149.12,10.84199521]
[1642111872097,15.63,149.21,149.13,3.83863039]
[1642111872294,21.664,149.21,149.13,13.89503039]
[1642111872494,21.664,149.21,149.13,14.14503039]
[1642111873199,21.664,149.21,149.14,3.83863039]
[1642111873496,2.681,149.2,149.14,4.08863039]
[1642111874900,2.681,149.2,149.14,14.14483039]
[1642111875101,2.681,149.21,149.14,16.82583039]
[1642111875299,8.7147,149.22,149.14,12.9872]
[1642111875498,2.681,149.22,149.14,18.9872]
[1642111875900,2.681,149.22,149.14,12.9872]
[1642111876298,2.681,149.22,149.14,18.9872]
[1642111876699,25.1854,149.23,149.14,12.9872]
[1642111876998,25.1854,149.23,149.14,18.9872]
[1642111877198,31.2187,149.23,149.14,18.9872]
[1642111877400,31.2187,149.23,149.14,12.9872]
[1642111877800,31.2187,149.23,149.14,10.3062]
[1642111878202,31.4787,149.23,149.14,10.3062]
[1642111878501,31.4787,149.23,149.14,10.0562]
[1642111879104,31.7287,149.23,149.14,10.0562]
[1642111879903,98.9187,149.23,149.14,0.25]
[1642111880104,104.9187,149.23,149.13,16.64245726]
[1642111880303,104.9187,149.23,149.13,3.90455726]
[1642111880706,114.2987,149.23,149.13,3.90455726]
[1642111880905,114.2987,149.23,149.13,13.96145726]
[1642111881305,114.2987,149.23,149.13,10.3069]
[1642111882007,114.5487,149.23,149.13,10.3069]
[1642111883130,114.5487,149.23,149.13,16.3069]
[1642111883731,114.2987,149.23,149.13,10.3069]
[1642111883930,47.1087,149.23,149.13,10.3069]
[1642111884130,41.1087,149.23,149.13,10.3069]
[1642111884331,41.1087,149.23,149.13,16.3069]
[1642111884932,41.1087,149.23,149.13,10.3069]
[1642111885132,41.1087,149.23,149.14,12.7367]
[1642111885532,41.1087,149.23,149.14,18.9867]
[1642111885733,41.1087,149.23,149.14,10.3057]
[1642111889839,108.2987,149.23,149.14,10.3057]
[1642111890036,114.2987,149.23,149.14,10.3057]
[1642111890237,108.2987,149.23,149.14,10.3057]
[1642111890438,114.2987,149.23,149.14,10.3057]
[1642111891041,114.5487,149.23,149.14,0.25]
[1642111891240,114.5487,149.23,149.13,2.681]
[1642111891441,114.5487,149.23,149.13,0.25]
[1642111892240,114.2987,149.23,149.12,10.0576]
[1642111893644,114.5487,149.23,149.12,10.3076]
[1642111894046,114.5487,149.23,149.12,0.25]
[1642111894447,114.5487,149.23,149.1,8.931]
[1642111894647,114.5487,149.23,149.1,0.25]
[1642111895048,114.5487,149.23,149.09,25.7866]
[1642111895248,0.07,149.21,149.09,2.681]
[1642111895449,6.0365,149.15,149.08,3.65455726]
[1642111895648,2.682,149.14,149.08,9.65455726]
[1642111895847,2.682,149.14,149.08,3.65455726]
[1642111896048,0.25,149.14,149.08,3.65455726]
[1642111896350,2.682,149.13,149.08,3.65455726]
[1642111896551,2.682,149.13,149.08,3.90455726]
[1642111896748,2.682,149.17,149.08,0.25]
[1642111896948,2.932,149.17,149.07,3.90455726]
[1642111897149,6.0369,149.14,149.07,13.96555726]
[1642111897349,2.682,149.13,149.07,13.96555726]
[1642111897550,2.682,149.13,149.07,10.311]
[1642111897750,2.682,149.13,149.05,3.83532452]
[1642111897949,2.932,149.13,149.05,3.83532452]
[1642111898149,2.682,149.13,149.06,10.0617]
[1642111898349,2.932,149.13,149.06,10.0617]
[1642111898551,2.932,149.13,149.06,16.0617]
[1642111898954,2.932,149.13,149.06,16.3117]
[1642111899552,3.192,149.13,149.06,16.3117]
[1642111901155,9.2292,149.13,149.06,10.3117]
[1642111901954,9.2292,149.13,149.06,0.25]
[1642111902155,9.2292,149.13,149.04,6.33655726]
[1642111902358,67.19,149.12,149.04,6.33655726]
[1642111902555,6.0389,149.09,149.04,6.33655726]
[1642111903155,2.683,149.08,149.04,6.33655726]
[1642111903356,2.683,149.08,149.04,2.682]
[1642111903557,12.563,149.08,149.04,2.682]
[1642111903755,6.0398,149.06,149.04,2.682]
[1642111903955,40.54195187,149.05,149.04,2.682]
[1642111904160,37.85895187,149.05,149.04,2.682]
[1642111905056,43.89925187,149.05,149.04,2.682]
[1642111905255,51.33225187,149.05,149.04,2.682]
[1642111905956,57.33225187,149.05,149.04,2.682]
[1642111906157,124.52225187,149.05,149.04,2.682]
[1642111906557,124.52225187,149.05,148.97,3.65455726]
[1642111906759,124.52225187,149.05,148.97,3.90455726]
[1642111907558,124.52225187,149.05,148.97,0.25]
[1642111907958,124.52225187,149.05,148.96,13.97285726]
[1642111910162,124.52225187,149.05,148.97,3.8427875]
[1642111910361,124.78225187,149.05,148.97,3.8427875]
[1642111910563,124.78225187,149.05,148.97,4.0927875]
[1642111911163,123.10496237,149.05,148.97,4.0927875]
[1642111911361,123.10496237,149.05,148.97,6.7767875]
[1642111911864,123.10496237,149.05,148.97,2.934]
[1642111912064,123.10496237,149.05,148.97,2.684]
[1642111912966,76.82,149.04,148.97,2.684]
[1642111913165,6.0419,149.02,148.97,2.684]
[1642111913367,2.684,149.01,148.97,2.934]
[1642111913765,6.0419,149.02,148.97,0.25]
[1642111913966,6.3019,149.02,148.94,22.65835726]
[1642111915366,6.3019,149.02,148.95,3.84320329]
[1642111915565,6.3019,149.02,148.95,4.09320329]
[1642111916591,2.684,149.01,148.95,4.09320329]
[1642111917191,2.684,149.01,148.95,0.25]
[1642111917393,2.684,149.01,148.94,19.97435726]
[1642111918192,8.7261,149.01,148.94,19.72435726]
[1642111918393,6.0421,149.01,148.94,19.72435726]
[1642111918593,2.685,149.0,148.94,19.72435726]
[1642111919192,2.685,149.0,148.94,16.0698]
[1642111919391,2.685,149.0,148.94,16.3198]
[1642111919891,2.945,149.0,148.94,16.3198]
[1642111922394,8.9874,149.0,148.94,6.25]
[1642111922598,8.9874,149.0,148.94,0.25]
[1642111922794,8.9874,149.0,148.93,3.90455726]
[1642111922995,8.9874,149.0,148.93,9.90455726]
[1642111923996,8.9874,149.0,148.93,6.25]
[1642111924396,8.9874,149.0,148.93,0.25]
[1642111924596,8.9874,149.0,148.93,6.0]
[1642111924795,8.9874,149.0,148.93,6.25]
[1642111924998,8.9874,149.0,148.93,0.25]
[1642111925900,8.9874,149.0,148.92,19.97535726]
[1642111927000,15.2374,149.0,148.92,9.90455726]
[1642111927499,24.8674,149.0,148.92,9.90455726]
[1642111927700,24.8674,149.0,148.93,3.84364119]
[1642111928100,24.8674,149.0,148.93,10.09364119]
[1642111929402,92.0574,149.0,148.93,10.09364119]
[1642111929603,24.8674,149.0,148.93,10.09364119]
[1642111929802,24.8674,149.0,148.93,6.25]
[1642111930504,24.8674,149.0,148.93,0.25]
[1642111930704,24.8674,149.0,148.92,3.90455726]
[1642111930904,24.8674,149.0,148.92,9.90455726]
[1642111931706,24.8674,149.0,148.92,6.25]
[1642111931907,24.3574,149.0,148.92,6.25]
[1642111932406,18.3574,149.0,148.92,6.25]
[1642111932607,18.3574,149.0,148.92,0.25]
[1642111932809,18.3574,149.0,148.91,9.90455726]